{"text_format":"1","workbook":"xlsx","n_sheets":3,"sheets":["Hinweise","Buchungen","Kontenplan"],"not_rendered":{"charts":0,"images":23,"macros":1,"external_links":0,"defined_names":0,"comments":0,"pivot_tables":0},"unopened":[],"bounds":{"document_bytes":16777216,"sheet_cells":100000,"rows_first":2000,"rows_last":500,"rows_between":2000,"halvings":0,"cell_chars":16384,"cell_head_chars":4096},"cells_cut":0,"cells_raw":0,"read":"whole","date_system":"1900"}

{"sheet":"Hinweise","index":0,"n_rows":26,"n_cols":1,"rows_kept":26,"cut":false,"hidden":false,"merged":[[0,0,0,7],[2,0,2,1]]}
["Rückstellungen"]
[]
["Voraussetzungen"]
["Um den Geschäftsgang buchen zu können müssen Sie Kenntnisse über die folgenden Lehrninhalte haben:"]
["Steuerrückstellungen"]
["Prozessrückstellungen"]
["Sonstige Rückstellungen"]
["Periodenfremde Aufwendungen"]
["Erträge aus der Auflösung von Rück-"]
["stellungen"]
[]
["Vorgehensweise"]
["1. Wählen Sie die Tabelle \"Buchungen\"."]
[]
["2. Buchen Sie die Geschäftsvorfälle"]
["    entweder durch Direkteingabe in die entsprechenden Felder des Grundbuchs (Kontennummern und Beträge)"]
["    oder durch Aufruf von Buchungsfenstern. (Klicken Sie dazu jeweils auf die Schaltfläche \"Buchung\" und beenden"]
["    Sie die Eingabe  mit \"OK\".)"]
["    Die Kontennummern sind vierstellig anzugeben. (siehe Kontenplan). Bei zusammengesetzten Buchungssätzen"]
["    sind die Buchungen nach der Höhe der Beträge geordnet vorzunehmen. "]
[]
["4. Sie können sich den Kontenplan mit Kontennummern jederzeit durch Klick auf den"]
["    entsprechenden Button anzeigen lassen."]
[]
["5. Die Richtigkeit Ihrer Buchungen wird bestätigt oder Sie werden auf"]
["    Fehler hingewiesen. (Ohne Buchung werden Fehler angezeigt.)"]

{"sheet":"Buchungen","index":1,"n_rows":151,"n_cols":7,"rows_kept":151,"cut":false,"hidden":false,"merged":[[29,0,30,0],[149,0,150,0],[8,4,10,4],[36,0,39,0],[36,1,39,6],[46,1,48,2],[27,0,28,0],[27,1,28,1],[27,2,28,2],[27,3,28,3],[27,4,28,4],[145,0,146,0],[145,1,147,2],[145,5,145,6],[146,5,146,6],[147,5,147,6],[139,5,139,6],[140,5,140,6],[141,5,141,6],[143,0,144,0],[143,5,144,5],[143,6,144,6],[139,0,140,0],[139,1,141,2],[139,3,141,3],[139,4,141,4],[143,1,144,1],[143,2,144,2],[143,3,144,3],[143,4,144,4],[136,0,138,0],[136,1,138,6],[99,0,100,0],[109,0,110,0],[109,2,110,2],[109,3,110,3],[109,4,110,4],[111,4,113,4],[106,5,106,6],[107,5,107,6],[46,0,47,0],[46,5,46,6],[47,5,47,6],[48,5,48,6],[50,0,52,0],[56,0,57,0],[56,1,58,2],[56,5,56,6],[57,5,57,6],[58,5,58,6],[97,5,97,6],[95,5,95,6],[96,5,96,6],[105,5,105,6],[93,6,94,6],[63,5,63,6],[64,5,64,6],[73,5,73,6],[75,5,75,6],[93,5,94,5],[62,5,62,6],[102,0,104,0],[102,1,104,6],[105,4,107,4],[73,4,75,4],[93,0,94,0],[93,1,94,1],[95,0,96,0],[95,1,97,2],[74,5,74,6],[60,0,61,0],[105,0,106,0],[105,1,107,2],[105,3,107,3],[66,0,67,0],[73,0,74,0],[73,1,75,2],[73,3,75,3],[69,0,72,0],[69,1,72,6],[109,5,110,5],[109,6,110,6],[111,0,112,0],[111,1,113,2],[111,3,113,3],[111,5,111,6],[112,5,112,6],[113,5,113,6],[109,1,110,1],[118,0,121,0],[118,1,121,6],[115,0,116,0],[115,1,116,1],[115,2,116,2],[115,3,116,3],[122,0,123,0],[122,1,124,2],[122,3,124,3],[122,5,122,6],[123,5,123,6],[124,5,124,6],[122,4,124,4],[128,0,129,0],[128,1,130,2],[128,5,128,6],[129,5,129,6],[130,5,130,6],[126,0,127,0],[126,1,127,1],[126,2,127,2],[126,3,127,3],[23,4,25,4],[23,5,23,6],[24,5,24,6],[25,5,25,6],[126,4,127,4],[126,5,127,5],[126,6,127,6],[115,4,116,4],[115,5,116,5],[115,6,116,6],[29,1,31,2],[29,5,29,6],[30,5,30,6],[31,5,31,6],[132,0,134,0],[21,0,22,0],[21,1,22,6],[23,0,24,0],[23,1,25,2],[23,3,25,3],[40,5,40,6],[41,5,41,6],[42,5,42,6],[33,0,34,0],[40,0,41,0],[40,1,42,2],[40,3,42,3],[40,4,42,4],[18,0,19,0],[44,4,45,4],[44,5,45,5],[44,6,45,6],[44,0,45,0],[44,1,45,1],[44,2,45,2],[44,3,45,3],[27,5,28,5],[27,6,28,6],[12,4,13,4],[12,5,13,5],[12,6,13,6],[14,0,15,0],[14,1,16,2],[14,5,14,6],[15,5,15,6],[16,5,16,6],[12,0,13,0],[12,3,13,3],[60,1,61,1],[60,2,61,2],[8,0,9,0],[8,1,10,2],[8,3,10,3],[5,0,7,0],[5,1,7,6],[8,5,8,6],[9,5,9,6],[10,5,10,6],[77,2,78,2],[77,3,78,3],[12,1,13,1],[12,2,13,2],[62,0,63,0],[62,1,64,2],[54,0,55,0],[54,1,55,6],[56,3,58,3],[56,4,58,4],[79,0,80,0],[79,1,81,2],[79,5,79,6],[80,5,80,6],[81,5,81,6],[77,4,78,4],[77,5,78,5],[77,6,78,6],[77,0,78,0],[77,1,78,1],[89,0,90,0],[89,1,91,2],[89,3,91,3],[87,0,88,0],[87,1,88,6],[89,4,91,4],[89,5,89,6],[90,5,90,6],[91,5,91,6],[60,5,61,5],[60,6,61,6],[93,2,94,2],[93,3,94,3],[1,0,1,4],[2,0,2,4],[93,4,94,4],[83,0,85,0],[60,3,61,3],[60,4,61,4]]}
[]
["Rückstellungen"]
["Steuerrückstellungen, Sonstige Rückstellungen"]
[null,null,null,null,null,null,0.19]
[]
["Geschäfts- vorfall 1","Unser Unternehmen rechnet mit Prozesskosten, die im nächsten Geschäftsjahr fällig werden, von 25.000,00 €. Der Gerichtsbescheid über 28.000,00 € trifft am 12.07. des nächsten Jahres ein und wird durch Banküberweisung beglichen."]
[]
[]
["31.12.","Bildung der Rückstellung zum Jahresabschluss",null,"Rückstellung zum Jahres- abschluss",25000,{"$f":"IF(AND(B13=\"6770\",E13=\"3900\"),\"Die Konten sind richtig!\",\"Mindestens ein Konto ist falsch!\")","v":"Mindestens ein Konto ist falsch!"}]
[null,null,null,null,null,{"$f":"IF(AND(D13=E9,G13=E9),\"Die Beträge sind richtig!\",\"Mindestens ein Betrag ist falsch!\")","v":"Mindestens ein Betrag ist falsch!"}]
[null,null,null,null,null,{"$f":"IF(AND(F9=\"Die Konten sind richtig!\",F10=\"Die Beträge sind richtig!\"),\"Alles richtig!\",\"Es sind noch Fehler vorhanden!\")","v":"Es sind noch Fehler vorhanden!"}]
[1,"Soll","Konto","€","Haben","Konto","€"]
["Buchungssatz","",{"$f":"IF(B13=\"\",\"\",VLOOKUP(B13,Kontenplan!$A$3:$B$23,2))","v":""},null,"",{"$f":"IF(E13=\"\",\"\",VLOOKUP(E13,Kontenplan!$A$3:$B$23,2))","v":""}]
[]
["12.07.","Buchung bei Überweisung der Prozesskosten im neuen Geschäftsjahr",null,"Rückstellung",25000,{"$f":"IF(AND(B19=\"3900\",B20=\"6990\",E19=\"2800\"),\"Die Konten sind richtig!\",\"Mindestens ein Konto ist falsch!\")","v":"Mindestens ein Konto ist falsch!"}]
[null,null,null,"Mehrkosten",3000,{"$f":"IF(AND(D19=E15,D20=E16,G19=E17),\"Die Beträge sind richtig!\",\"Mindestens ein Betrag ist falsch!\")","v":"Mindestens ein Betrag ist falsch!"}]
[null,null,null,"Gesamtkosten",28000,{"$f":"IF(AND(F15=\"Die Konten sind richtig!\",F16=\"Die Beträge sind richtig!\"),\"Alles richtig!\",\"Es sind noch Fehler vorhanden!\")","v":"Es sind noch Fehler vorhanden!"}]
[2,"Soll","Konto","€","Haben","Konto","€"]
["Buchungssatz","",{"$f":"IF(B19=\"\",\"\",VLOOKUP(B19,Kontenplan!$A$3:$B$23,2))","v":""},null,"",{"$f":"IF(E19=\"\",\"\",VLOOKUP(E19,Kontenplan!$A$3:$B$23,2))","v":""}]
[null,"",{"$f":"IF(B20=\"\",\"\",VLOOKUP(B20,Kontenplan!$A$3:$B$23,2))","v":""},null,null,{"$f":"IF(E20=\"\",\"\",VLOOKUP(E20,Kontenplan!$A$3:$B$23,2))","v":""}]
[]
["Geschäfts- vorfall 2","Wir rechnen beim Jahresabschluss mit einer Gewerbesteuernachzahlung von 18.000,00 €. Laut Steuerbescheid werden am 15.06. des nächsten Geschäftsjahres 15.500,00 € mit der Bank überwiesen."]
[]
["31.12.","Bildung der Rückstellung zum Jahresabschluss",null,"Rückstellung zum Jahres- abschluss",18000,{"$f":"IF(AND(B28=\"7700\",E28=\"3800\"),\"Die Konten sind richtig!\",\"Mindestens ein Konto ist falsch!\")","v":"Mindestens ein Konto ist falsch!"}]
[null,null,null,null,null,{"$f":"IF(AND(D28=E24,G28=E24),\"Die Beträge sind richtig!\",\"Mindestens ein Betrag ist falsch!\")","v":"Mindestens ein Betrag ist falsch!"}]
[null,null,null,null,null,{"$f":"IF(AND(F24=\"Die Konten sind richtig!\",F25=\"Die Beträge sind richtig!\"),\"Alles richtig!\",\"Es sind noch Fehler vorhanden!\")","v":"Es sind noch Fehler vorhanden!"}]
[3,"Soll","Konto","€","Haben","Konto","€"]
["Buchungssatz","",{"$f":"IF(B28=\"\",\"\",VLOOKUP(B28,Kontenplan!$A$3:$B$24,2))","v":""},null,"",{"$f":"IF(E28=\"\",\"\",VLOOKUP(E28,Kontenplan!$A$3:$B$23,2))","v":""}]
[]
["15.06.","Buchung bei Überweisung der Gewerbesteuer im neuen Geschäftsjahr",null,"Rückstellung",18000,{"$f":"IF(AND(B34=\"3800\",E34=\"2800\",E35=\"5480\"),\"Die Konten sind richtig!\",\"Mindestens ein Konto ist falsch!\")","v":"Mindestens ein Konto ist falsch!"}]
[null,null,null,"Steuerschuld",15500,{"$f":"IF(AND(D34=E30,G34=E31,G35=E32),\"Die Beträge sind richtig!\",\"Mindestens ein Betrag ist falsch!\")","v":"Mindestens ein Betrag ist falsch!"}]
[null,null,null,"Ertrag",{"$f":"E30-E31","v":2500},{"$f":"IF(AND(F30=\"Die Konten sind richtig!\",F31=\"Die Beträge sind richtig!\"),\"Alles richtig!\",\"Es sind noch Fehler vorhanden!\")","v":"Es sind noch Fehler vorhanden!"}]
[4,"Soll","Konto","€","Haben","Konto","€"]
["Buchungssatz","",{"$f":"IF(B34=\"\",\"\",VLOOKUP(B34,Kontenplan!$A$3:$B$23,2))","v":""},null,"",{"$f":"IF(E34=\"\",\"\",VLOOKUP(E34,Kontenplan!$A$3:$B$23,2))","v":""}]
[null,null,null,null,"",{"$f":"IF(E35=\"\",\"\",VLOOKUP(E35,Kontenplan!$A$3:$B$23,2))","v":""}]
[]
["Geschäfts- vorfall 3","Am 3.12. des alten Geschäftsjahres wurde ein Kaufvertrag über Baumwollstoffe geschlossen. Damaliger Auftragswert 30.000,00 € netto. Wegen des Preisverfalls an der Baumwollbörse, der sich zum Ende des Geschäftsjahres abzeichnet, dürfen die Rohstoffe im nächsten Jahr nur noch mit 25.000,00 € in die Kalkulation eingehen. Die Rechnung trifft am 03.02. des neuen Geschäftsjahres ein."]
[]
[]
[]
["31.12.","Bildung der Rückstellung zum Jahresabschluss",null,"Verlust durch den Preis- verfall",5000,{"$f":"IF(AND(B45=\"6000\",E45=\"3900\"),\"Die Konten sind richtig!\",\"Mindestens ein Konto ist falsch!\")","v":"Mindestens ein Konto ist falsch!"}]
[null,null,null,null,null,{"$f":"IF(AND(D45=E41,G45=E41),\"Die Beträge sind richtig!\",\"Mindestens ein Betrag ist falsch!\")","v":"Mindestens ein Betrag ist falsch!"}]
[null,null,null,null,null,{"$f":"IF(AND(F41=\"Die Konten sind richtig!\",F42=\"Die Beträge sind richtig!\"),\"Alles richtig!\",\"Es sind noch Fehler vorhanden!\")","v":"Es sind noch Fehler vorhanden!"}]
[5,"Soll","Konto","€","Haben","Konto","€"]
["Buchungssatz","",{"$f":"IF(B45=\"\",\"\",VLOOKUP(B45,Kontenplan!$A$3:$B$23,2))","v":""},null,"",{"$f":"IF(E45=\"\",\"\",VLOOKUP(E45,Kontenplan!$A$3:$B$23,2))","v":""}]
[]
["03.02.","Buchung bei Rechnungseingang. (Die Rohstoffe sind noch nicht bezahlt.)",null,"netto",30000,{"$f":"IF(AND(B51=\"6000\",B52=\"2600\",B53=\"3900\",E51=\"4400\"),\"Die Konten sind richtig!\",\"Mindestens ein Konto ist falsch!\")","v":"Mindestens ein Konto ist falsch!"}]
[null,null,null,"UmSt",{"$f":"ROUND(E47*G4,2)","v":5700},{"$f":"IF(AND(D51=E47-E41,D52=E48,D53=E41,G51=E49),\"Die Beträge sind richtig!\",\"Mindestens ein Betrag ist falsch!\")","v":"Mindestens ein Betrag ist falsch!"}]
[null,null,null,"brutto",{"$f":"E47+E48","v":35700},{"$f":"IF(AND(F47=\"Die Konten sind richtig!\",F48=\"Die Beträge sind richtig!\"),\"Alles richtig!\",\"Es sind noch Fehler vorhanden!\")","v":"Es sind noch Fehler vorhanden!"}]
[6,"Soll","Konto","€","Haben","Konto","€"]
["Buchungssatz","",{"$f":"IF(B51=\"\",\"\",VLOOKUP(B51,Kontenplan!$A$3:$B$24,2))","v":""},null,"",{"$f":"IF(E51=\"\",\"\",VLOOKUP(E51,Kontenplan!$A$3:$B$23,2))","v":""}]
[null,"",{"$f":"IF(B52=\"\",\"\",VLOOKUP(B52,Kontenplan!$A$3:$B$24,2))","v":""}]
[null,"",{"$f":"IF(B53=\"\",\"\",VLOOKUP(B53,Kontenplan!$A$3:$B$24,2))","v":""}]
[]
["Geschäfts- vorfall 4","Für Steuerberatungskosten sind am Bilanzstichtag 4.200,00 € anzusetzen. Die Rechnung des Steuerberaters lautet am 15.05. über netto 3.800,00 €, die wir durch Banküberweisung begleichen."]
[]
["31.12.","Buchung am Bilanzstichtag",null,"Rückstelllungen für die Steuer- beratung",4200,{"$f":"IF(AND(B61=\"6770\",E61=\"3900\"),\"Die Konten sind richtig!\",\"Mindestens ein Konto ist falsch!\")","v":"Mindestens ein Konto ist falsch!"}]
[null,null,null,null,null,{"$f":"IF(AND(D61=E57,G61=E57),\"Die Beträge sind richtig!\",\"Mindestens ein Betrag ist falsch!\")","v":"Mindestens ein Betrag ist falsch!"}]
[null,null,null,null,null,{"$f":"IF(AND(F57=\"Die Konten sind richtig!\",F58=\"Die Beträge sind richtig!\"),\"Alles richtig!\",\"Es sind noch Fehler vorhanden!\")","v":"Es sind noch Fehler vorhanden!"}]
[7,"Soll","Konto","€","Haben","Konto","€"]
["Buchungssatz",null,{"$f":"IF(B61=\"\",\"\",VLOOKUP(B61,Kontenplan!$A$3:$B$23,2))","v":""},null,null,{"$f":"IF(E61=\"\",\"\",VLOOKUP(E61,Kontenplan!$A$3:$B$23,2))","v":""}]
[]
["15.05.","Buchung bei Überweisung der Steuerberatungskosten",null,"netto",3800,{"$f":"IF(AND(B67=\"3900\",B68=\"2600\",E67=\"2800\",E68=\"5480\"),\"Die Konten sind richtig!\",\"Mindestens ein Konto ist falsch!\")","v":"Mindestens ein Konto ist falsch!"}]
[null,null,null,"UmSt",{"$f":"ROUND(E63*G4,2)","v":722},{"$f":"IF(AND(D67=E57,D68=E64,G67=E65,G68=E57-E63),\"Die Beträge sind richtig!\",\"Mindestens ein Betrag ist falsch!\")","v":"Mindestens ein Betrag ist falsch!"}]
[null,null,null,"brutto",{"$f":"E63+E64","v":4522},{"$f":"IF(AND(F63=\"Die Konten sind richtig!\",F64=\"Die Beträge sind richtig!\"),\"Alles richtig!\",\"Es sind noch Fehler vorhanden!\")","v":"Es sind noch Fehler vorhanden!"}]
[8,"Soll","Konto","€","Haben","Konto","€"]
["Buchungssatz",null,{"$f":"IF(B67=\"\",\"\",VLOOKUP(B67,Kontenplan!$A$3:$B$23,2))","v":""},null,null,{"$f":"IF(E67=\"\",\"\",VLOOKUP(E67,Kontenplan!$A$3:$B$23,2))","v":""}]
[null,null,{"$f":"IF(B68=\"\",\"\",VLOOKUP(B68,Kontenplan!$A$3:$B$23,2))","v":""},null,null,{"$f":"IF(E68=\"\",\"\",VLOOKUP(E68,Kontenplan!$A$3:$B$23,2))","v":""}]
[]
["Geschäfts- vorfall 5","Im alten Geschäftsjahr waren Reparaturen am Lagergebäude notwendig, für die ein Kostenvoranschlag von 8.900,00 € vorlag. Die Reparaturen werden vom 12.01. bis zum 16.02. des nächsten Jahres durchgeführt. Die Abschlussrechnung über brutto 11.186,00 € wird am 25.02. des nächsten Jahres durch Banküberweisung beglichen."]
[]
[]
[]
["31.12.","Erfassung des Instandhaltungsaufwandes im alten Geschäftsjahr",null,"Kosten- voranschlag",8900,{"$f":"IF(AND(B78=\"6160\",E78=\"3900\"),\"Die Konten sind richtig!\",\"Mindestens ein Konto ist falsch!\")","v":"Mindestens ein Konto ist falsch!"}]
[null,null,null,null,null,{"$f":"IF(AND(D78=E74,G78=E74),\"Die Beträge sind richtig!\",\"Mindestens ein Betrag ist falsch!\")","v":"Mindestens ein Betrag ist falsch!"}]
[null,null,null,null,null,{"$f":"IF(AND(F74=\"Die Konten sind richtig!\",F75=\"Die Beträge sind richtig!\"),\"Alles richtig!\",\"Es sind noch Fehler vorhanden!\")","v":"Es sind noch Fehler vorhanden!"}]
[9,"Soll","Konto","€","Haben","Konto","€"]
["Buchungssatz",null,{"$f":"IF(B78=\"\",\"\",VLOOKUP(B78,Kontenplan!$A$3:$B$23,2))","v":""},null,null,{"$f":"IF(E78=\"\",\"\",VLOOKUP(E78,Kontenplan!$A$3:$B$23,2))","v":""}]
[]
["25.02.","Banküberweisung der Handwerkerrechnung",null,"netto",{"$f":"E82-E81","v":9400},{"$f":"IF(AND(B84=\"3900\",B85=\"2600\",B86=\"6990\",E84=\"2800\"),\"Die Konten sind richtig!\",\"Mindestens ein Konto ist falsch!\")","v":"Mindestens ein Konto ist falsch!"}]
[null,null,null,"UmSt",{"$f":"ROUND(E82*(G4*100)/(100+(G4*100)),2)","v":1786},{"$f":"IF(AND(D84=E74,D85=E81,D86=E80-E74,G84=E82),\"Die Beträge sind richtig!\",\"Mindestens ein Betrag ist falsch!\")","v":"Mindestens ein Betrag ist falsch!"}]
[null,null,null,"brutto",11186,{"$f":"IF(AND(F80=\"Die Konten sind richtig!\",F81=\"Die Beträge sind richtig!\"),\"Alles richtig!\",\"Es sind noch Fehler vorhanden!\")","v":"Es sind noch Fehler vorhanden!"}]
[10,"Soll","Konto","€","Haben","Konto","€"]
["Buchungssatz","",{"$f":"IF(B84=\"\",\"\",VLOOKUP(B84,Kontenplan!$A$3:$B$23,2))","v":""},null,"",{"$f":"IF(E84=\"\",\"\",VLOOKUP(E84,Kontenplan!$A$3:$B$23,2))","v":""}]
[null,"",{"$f":"IF(B85=\"\",\"\",VLOOKUP(B85,Kontenplan!$A$3:$B$23,2))","v":""},null,null,{"$f":"IF(E85=\"\",\"\",VLOOKUP(E85,Kontenplan!$A$3:$B$23,2))","v":""}]
[null,"",{"$f":"IF(B86=\"\",\"\",VLOOKUP(B86,Kontenplan!$A$3:$B$23,2))","v":""},null,null,{"$f":"IF(E86=\"\",\"\",VLOOKUP(E86,Kontenplan!$A$3:$B$23,2))","v":""}]
[]
["Geschäfts- vorfall 6","Wir rechnen beim Jahresabschluss mit einer Grundsteuernachzahlung von 2.000,00 €. Laut Steuerbescheid werden am 15.01. des nächsten Geschäftsjahres 2.500,00 € mit der Bank überwiesen."]
[]
["31.12.","Bildung der Steuerrückstellung zum Jahresabschluss",null,"Rückstellung zum Jahres- abschluss",2000,{"$f":"IF(AND(B94=\"7020\",E94=\"3800\"),\"Die Konten sind richtig!\",\"Mindestens ein Konto ist falsch!\")","v":"Mindestens ein Konto ist falsch!"}]
[null,null,null,null,null,{"$f":"IF(AND(D94=E90,G94=E90),\"Die Beträge sind richtig!\",\"Mindestens ein Betrag ist falsch!\")","v":"Mindestens ein Betrag ist falsch!"}]
[null,null,null,null,null,{"$f":"IF(AND(F90=\"Die Konten sind richtig!\",F91=\"Die Beträge sind richtig!\"),\"Alles richtig!\",\"Es sind noch Fehler vorhanden!\")","v":"Es sind noch Fehler vorhanden!"}]
[11,"Soll","Konto","€","Haben","Konto","€"]
["Buchungssatz","",{"$f":"IF(B94=\"\",\"\",VLOOKUP(B94,Kontenplan!$A$3:$B$23,2))","v":""},null,"",{"$f":"IF(E94=\"\",\"\",VLOOKUP(E94,Kontenplan!$A$3:$B$23,2))","v":""}]
[]
["15.01.","Buchung bei Überweisung der Grundsteuernachzahlung",null,"Rückstellung",2000,{"$f":"IF(AND(B100=\"3800\",B101=\"6990\",E100=\"2800\"),\"Die Konten sind richtig!\",\"Mindestens ein Konto ist falsch!\")","v":"Mindestens ein Konto ist falsch!"}]
[null,null,null,"Steuerschuld",2500,{"$f":"IF(AND(D100=E96,D101=E98,G100=E97),\"Die Beträge sind richtig!\",\"Mindestens ein Betrag ist falsch!\")","v":"Mindestens ein Betrag ist falsch!"}]
[null,null,null,"Aufwand",500,{"$f":"IF(AND(F96=\"Die Konten sind richtig!\",F97=\"Die Beträge sind richtig!\"),\"Alles richtig!\",\"Es sind noch Fehler vorhanden!\")","v":"Es sind noch Fehler vorhanden!"}]
[12,"Soll","Konto","€","Haben","Konto","€"]
["Buchungssatz","",{"$f":"IF(B100=\"\",\"\",VLOOKUP(B100,Kontenplan!$A$3:$B$23,2))","v":""},null,"",{"$f":"IF(E100=\"\",\"\",VLOOKUP(E100,Kontenplan!$A$3:$B$23,2))","v":""}]
[null,"",{"$f":"IF(B101=\"\",\"\",VLOOKUP(B101,Kontenplan!$A$3:$B$23,2))","v":""}]
[]
["Geschäfts- vorfall 7","Für einen ausstehenden Prozess beim Verwaltungsgericht müssen wir mit Prozesskosten von 5.000,00 € rechnen. Die Urteilsverkündung steht am 15.04. des nächsten Jahres an. Laut Gerichtsurteil müssen alle Prozesskosten vom Prozessgegner getragen werden."]
[]
[]
["31.12.","Bildung der Prozessrückstellung",null,"Rückstellung zum Jahres- abschluss",5000,{"$f":"IF(AND(B110=\"6770\",E110=\"3900\"),\"Die Konten sind richtig!\",\"Mindestens ein Konto ist falsch!\")","v":"Mindestens ein Konto ist falsch!"}]
[null,null,null,null,null,{"$f":"IF(AND(D110=E106,G110=E106),\"Die Beträge sind richtig!\",\"Mindestens ein Betrag ist falsch!\")","v":"Mindestens ein Betrag ist falsch!"}]
[null,null,null,null,null,{"$f":"IF(AND(F106=\"Die Konten sind richtig!\",F107=\"Die Beträge sind richtig!\"),\"Alles richtig!\",\"Es sind noch Fehler vorhanden!\")","v":"Es sind noch Fehler vorhanden!"}]
[13,"Soll","Konto","€","Haben","Konto","€"]
["Buchungssatz","",{"$f":"IF(B110=\"\",\"\",VLOOKUP(B110,Kontenplan!$A$3:$B$23,2))","v":""},null,"",{"$f":"IF(E110=\"\",\"\",VLOOKUP(E110,Kontenplan!$A$3:$B$23,2))","v":""}]
[]
["15.04.","Buchung bei Urteilsverkündung",null,"Auflösung der Rückstellung",5000,{"$f":"IF(AND(B116=\"3900\",E116=\"5480\"),\"Die Konten sind richtig!\",\"Mindestens ein Konto ist falsch!\")","v":"Mindestens ein Konto ist falsch!"}]
[null,null,null,null,null,{"$f":"IF(AND(D116=E112,G116=E112),\"Die Beträge sind richtig!\",\"Mindestens ein Betrag ist falsch!\")","v":"Mindestens ein Betrag ist falsch!"}]
[null,null,null,null,null,{"$f":"IF(AND(F112=\"Die Konten sind richtig!\",F113=\"Die Beträge sind richtig!\"),\"Alles richtig!\",\"Es sind noch Fehler vorhanden!\")","v":"Es sind noch Fehler vorhanden!"}]
[14,"Soll","Konto","€","Haben","Konto","€"]
["Buchungssatz","",{"$f":"IF(B116=\"\",\"\",VLOOKUP(B116,Kontenplan!$A$3:$B$23,2))","v":""},null,"",{"$f":"IF(E116=\"\",\"\",VLOOKUP(E116,Kontenplan!$A$3:$B$23,2))","v":""}]
[]
[]
["Geschäfts- vorfall 8","Im November des alten Geschäftsjahres haben wir Hilfsstoffe im Wert von 22.000,00 € netto gekauft, die fix zum 31.01. des neuen Geschäftsjahres geliefert werden sollen. Im Dezember sind jedoch die Preis so stark gefallen, dass dieses Hilfsstoffe nur noch mit 18.000,00 € bewertet werden können. Die Rechnung des Lieferers trifft zeitgleich mit der Lieferung am 31.01. ein. "]
[]
[]
[]
["31.12.","Bildung der Rückstellung zum Jahresabschluss",null,"Verlust durch den Preis- verfall",4000,{"$f":"IF(AND(B127=\"6020\",E127=\"3900\"),\"Die Konten sind richtig!\",\"Mindestens ein Konto ist falsch!\")","v":"Mindestens ein Konto ist falsch!"}]
[null,null,null,null,null,{"$f":"IF(AND(D127=E123,G127=E123),\"Die Beträge sind richtig!\",\"Mindestens ein Betrag ist falsch!\")","v":"Mindestens ein Betrag ist falsch!"}]
[null,null,null,null,null,{"$f":"IF(AND(F123=\"Die Konten sind richtig!\",F124=\"Die Beträge sind richtig!\"),\"Alles richtig!\",\"Es sind noch Fehler vorhanden!\")","v":"Es sind noch Fehler vorhanden!"}]
[15,"Soll","Konto","€","Haben","Konto","€"]
["Buchungssatz","",{"$f":"IF(B127=\"\",\"\",VLOOKUP(B127,Kontenplan!$A$3:$B$23,2))","v":""},null,"",{"$f":"IF(E127=\"\",\"\",VLOOKUP(E127,Kontenplan!$A$3:$B$23,2))","v":""}]
[]
["31.01.","Buchung bei Rechnungseingang. (Die Rohstoffe sind noch nicht bezahlt.)",null,"netto",22000,{"$f":"IF(AND(B133=\"6020\",B134=\"2600\",B135=\"3900\",E133=\"4400\"),\"Die Konten sind richtig!\",\"Mindestens ein Konto ist falsch!\")","v":"Mindestens ein Konto ist falsch!"}]
[null,null,null,"UmSt",{"$f":"ROUND(E129*G4,2)","v":4180},{"$f":"IF(AND(D133=E129-E123,D134=E130,D135=E123,G133=E131),\"Die Beträge sind richtig!\",\"Mindestens ein Betrag ist falsch!\")","v":"Mindestens ein Betrag ist falsch!"}]
[null,null,null,"brutto",{"$f":"E129+E130","v":26180},{"$f":"IF(AND(F129=\"Die Konten sind richtig!\",F130=\"Die Beträge sind richtig!\"),\"Alles richtig!\",\"Es sind noch Fehler vorhanden!\")","v":"Es sind noch Fehler vorhanden!"}]
[16,"Soll","Konto","€","Haben","Konto","€"]
["Buchungssatz","",{"$f":"IF(B133=\"\",\"\",VLOOKUP(B133,Kontenplan!$A$3:$B$23,2))","v":""},null,"",{"$f":"IF(E133=\"\",\"\",VLOOKUP(E133,Kontenplan!$A$3:$B$23,2))","v":""}]
[null,"",{"$f":"IF(B134=\"\",\"\",VLOOKUP(B134,Kontenplan!$A$3:$B$23,2))","v":""},null,null,{"$f":"IF(E134=\"\",\"\",VLOOKUP(E134,Kontenplan!$A$3:$B$23,2))","v":""}]
[null,"",{"$f":"IF(B135=\"\",\"\",VLOOKUP(B135,Kontenplan!$A$3:$B$23,2))","v":""},null,null,{"$f":"IF(E135=\"\",\"\",VLOOKUP(E135,Kontenplan!$A$3:$B$23,2))","v":""}]
[]
["Geschäfts- vorfall 9"]
[]
[]
["31.12.","Erfassung des Instandhaltungsaufwandes im alten Geschäftsjahr",null,"Kosten- voranschlag",2400,{"$f":"IF(AND(B144=\"6160\",E144=\"3900\"),\"Die Konten sind richtig!\",\"Mindestens ein Konto ist falsch!\")","v":"Mindestens ein Konto ist falsch!"}]
[null,null,null,null,null,{"$f":"IF(AND(D144=E140,G144=E140),\"Die Beträge sind richtig!\",\"Mindestens ein Betrag ist falsch!\")","v":"Mindestens ein Betrag ist falsch!"}]
[null,null,null,null,null,{"$f":"IF(AND(F140=\"Die Konten sind richtig!\",F141=\"Die Beträge sind richtig!\"),\"Alles richtig!\",\"Es sind noch Fehler vorhanden!\")","v":"Es sind noch Fehler vorhanden!"}]
[17,"Soll","Konto","€","Haben","Konto","€"]
["Buchungssatz","",{"$f":"IF(B144=\"\",\"\",VLOOKUP(B144,Kontenplan!$A$3:$B$23,2))","v":""},null,"",{"$f":"IF(E144=\"\",\"\",VLOOKUP(E144,Kontenplan!$A$3:$B$23,2))","v":""}]
[]
["14.02.","Barzahlung der Dachdeckerrechnung ",null,"netto",{"$f":"E148-E147","v":1800},{"$f":"IF(AND(B150=\"3900\",B151=\"2600\",E150=\"2880\",E151=\"5480\"),\"Die Konten sind richtig!\",\"Mindestens ein Konto ist falsch!\")","v":"Mindestens ein Konto ist falsch!"}]
[null,null,null,"UmSt",{"$f":"ROUND(E148*(G4*100)/(100+(G4*100)),2)","v":342},{"$f":"IF(AND(D150=E140,D151=E147,G150=E148,G151=E140-E146),\"Die Beträge sind richtig!\",\"Mindestens ein Betrag ist falsch!\")","v":"Mindestens ein Betrag ist falsch!"}]
[null,null,null,"brutto",2142,{"$f":"IF(AND(F146=\"Die Konten sind richtig!\",F147=\"Die Beträge sind richtig!\"),\"Alles richtig!\",\"Es sind noch Fehler vorhanden!\")","v":"Es sind noch Fehler vorhanden!"}]
[18,"Soll","Konto","€","Haben","Konto","€"]
["Buchungssatz","",{"$f":"IF(B150=\"\",\"\",VLOOKUP(B150,Kontenplan!$A$3:$B$23,2))","v":""},null,"",{"$f":"IF(E150=\"\",\"\",VLOOKUP(E150,Kontenplan!$A$3:$B$23,2))","v":""}]
[null,"",{"$f":"IF(B151=\"\",\"\",VLOOKUP(B151,Kontenplan!$A$3:$B$23,2))","v":""},null,"",{"$f":"IF(E151=\"\",\"\",VLOOKUP(E151,Kontenplan!$A$3:$B$23,2))","v":""}]

{"sheet":"Kontenplan","index":2,"n_rows":24,"n_cols":2,"rows_kept":24,"cut":false,"hidden":false,"merged":[]}
[null,"Kontenplan"]
[]
["Nr.","Konto"]
["2600","Vorsteuer"]
["2800","Kreditinstitute/Bank"]
["2880","Kasse"]
["3800","Steuerrückstellungen"]
["3900","Sonstige Rückstelllungen"]
["4200","Verbindlichkeiten g. Kreditinstituten"]
["4400","Verbindlichkeiten a.L.u.L."]
["4800","Umsatzsteuer"]
["5480","Ertr. a. d. Aufl. von Rückstellungen"]
["5710","Zinserträge"]
["6000","Aufwendungen für Rohstoffe"]
["6020","Aufwendungen für Hilfsstoffe"]
["6160","Fremdinstandhaltung"]
["6700","Mietaufwendungen"]
["6710","Leasingaufwendungen"]
["6770","Rechts- und Beratungskosten"]
["6990","Periodenfremde Aufwendungen"]
["7020","Grundsteuer"]
["7030","Kraftfahrzeugsteuer"]
["7510","Zinsaufwendungen"]
["7700","Gewerbesteuer"]